{"text_format":"1","workbook":"xlsx","n_sheets":1,"sheets":["Sheet1"],"not_rendered":{"charts":0,"images":0,"macros":1,"external_links":0,"defined_names":2,"comments":0,"pivot_tables":0},"unopened":[],"bounds":{"document_bytes":16777216,"sheet_cells":100000,"rows_first":2000,"rows_last":500,"rows_between":2000,"halvings":0,"cell_chars":16384,"cell_head_chars":4096},"cells_cut":0,"cells_raw":0,"read":"whole","date_system":"1900"}

{"sheet":"Sheet1","index":0,"n_rows":199,"n_cols":20,"rows_kept":199,"cut":false,"hidden":false,"merged":[]}
[null,null,null,null,null,null,null,null,null,null,null,null,{"$f":"IF($S$1=1,\"1\",\"\")","v":"1"},4,null,{"$f":"IFERROR(IF(E1>0,\"e\",IF(F1>0,\"F\",IF(G1>0,\"G\",IF(H1>0,\"H\",IF(I1>0,\"J\",IF(J1>0,\"J\",IF(K1>0,\"K\",\"\"))))))),\"\")","v":""},null,null,1]
["اليوم الأول",123,null,null,null,null,1,"محرم",1437,null,null,null,{"$f":"IF($S$1=1,\"1\",\"\")","v":"1"},null,null,{"$f":"IFERROR(IF(E2>0,\"e\",IF(F2>0,\"F\",IF(G2>0,\"G\",IF(H2>0,\"H\",IF(I2>0,\"J\",IF(J2>0,\"J\",IF(K2>0,\"K\",\"\"))))))),\"\")","v":"G"}]
["م","اسم العميل","الفرع","العنوان","مبلغ1","مبلغ2","مبلغ3","مبلغ4","مبلغ5","مبلغ6","مبلغ7","اجمالي المبالغ","1",null,null,{"$f":"IF(L3>0,\"اظهار\",IF(L3<=0,\"\"))","v":"اظهار"}]
[1,"عميل1",null,null,null,null,null,null,null,null,null,{"$f":"SUM(E4:K4)","v":0},"1",null,null,{"$f":"IF(L4>0,\"اظهار\",IF(L4<=0,\"\"))","v":""}]
[2,"عميل 2",null,null,null,null,null,null,null,null,null,{"$f":"SUM(E5:K5)","v":0},"1",null,null,"",null,null,null,"يجب عليك كتابة الرقم المراد طباعتة"]
[3,"عميل3",null,null,20,10,50,60,30,33,500,{"$f":"SUM(E6:K6)","v":703},"1",null,null,"اظهار"]
[4,"عميل4",null,null,null,null,null,null,null,null,null,{"$f":"SUM(E7:K7)","v":0},"1",null,null,""]
[5,"عميل5",null,null,null,null,null,null,null,null,null,0,"1",null,null,""]
[6,"عميل6",null,null,null,null,null,null,null,null,null,0,"1",null,null,""]
[7,"عميل7",null,null,null,null,null,null,null,null,null,0,"1",null,null,""]
[8,"عميل8",null,null,null,null,null,null,null,null,null,0,"1",null,null,""]
[9,"عميل9",null,null,null,null,null,null,null,null,null,0,"1",null,null,""]
[10,"عميل10",null,null,null,null,null,null,null,null,null,0,"1",null,null,""]
[11,"عميل11",null,null,40,55,88,77,99,400,70,{"$f":"SUM(E14:K14)","v":829},"1",null,null,"اظهار"]
[12,"عميل12",null,null,null,null,null,null,null,null,null,{"$f":"SUM(E15:K15)","v":0},"1",null,null,""]
[13,"عميل13",null,null,null,null,null,null,null,null,null,0,"1",null,null,""]
[14,"عميل14",null,null,null,null,null,null,null,null,null,0,"1",null,null,""]
[15,"عميل15",null,null,null,null,null,null,null,null,null,0,"1",null,null,""]
[16,"عميل16",null,null,null,null,null,null,null,null,55,55,"1",null,null,"اظهار"]
[17,"عميل17",null,null,null,null,null,null,null,null,null,0,"1",null,null,""]
[18,"عميل18",null,null,null,null,null,null,null,null,null,0,"1",null,null,""]
[19,"عميل19",null,null,null,null,null,null,null,null,null,0,"1",null,null,""]
[20,"عميل20",null,null,94,6,99,88,5,125,111,528,"1",null,null,"اظهار"]
[21,"عميل21",null,null,null,null,null,null,null,null,null,0,"1",null,null,""]
[22,"عميل22",null,null,null,null,null,null,null,null,null,0,"1",null,null,""]
["الإجمالي النقدي",null,null,null,{"$f":"SUM(E4:E25)","v":154},{"$f":"SUM(F4:F25)","v":71},237,225,134,558,736,{"$f":"SUM(L4:L25)","v":2115},"1",null,null,"اظهار"]
["الشيكات",null,null,null,null,null,null,null,null,null,null,{"$f":"SUM(E27:K27)","v":0},{"$f":"IF($S$1=1,\"1\",\"\")","v":"1"},null,null,""]
[null,null,null,null,null,null,null,null,null,null,null,null,null,null,null,""]
["اليوم الثاني",null,null,null,null,null,2,"محرم",1437,null,null,null,{"$f":"IF($S$1=2,\"2\",\"\")","v":""},null,null,""]
["م","اسم العميل","الفرع","العنوان","مبلغ1","مبلغ2","مبلغ3","مبلغ4","مبلغ5","مبلغ6","مبلغ7","اجمالي المبالغ","",null,null,"اظهار"]
[1,"عميل1",null,null,15,null,null,null,null,null,null,{"$f":"SUM(E31:K31)","v":15},"",null,null,"اظهار"]
[2,"عميل 2",null,null,null,null,null,null,null,null,null,{"$f":"SUM(E32:K32)","v":0},"",null,null,""]
[3,"عميل3",null,null,20,null,null,60,null,null,null,80,"",null,null,"اظهار"]
[4,"عميل4",null,null,null,null,null,null,null,null,null,0,"",null,null,""]
[5,"عميل5",null,null,30,null,null,null,33,null,500,563,"",null,null,"اظهار"]
[6,"عميل6",null,null,null,null,null,null,null,null,null,0,"",null,null,""]
[7,"عميل7",null,null,40,10,50,null,null,null,null,100,"",null,null,"اظهار"]
[8,"عميل8",null,null,null,null,null,null,null,400,null,400,"",null,null,"اظهار"]
[9,"عميل9",null,null,null,null,null,null,null,null,null,0,"",null,null,""]
[10,"عميل10",null,null,null,99,null,null,null,null,null,99,"",null,null,"اظهار"]
[11,"عميل11",null,null,null,null,88,77,null,null,null,165,"",null,null,"اظهار"]
[12,"عميل12",null,null,null,null,null,null,null,null,null,0,"",null,null,""]
[13,"عميل13",null,null,null,null,null,70,null,null,null,70,"",null,null,"اظهار"]
[14,"عميل14",null,null,null,null,null,null,null,null,null,0,"",null,null,""]
[15,"عميل15",null,null,null,null,null,null,null,null,null,0,"",null,null,""]
[16,"عميل16",null,null,90,null,null,125,null,null,null,215,"",null,null,"اظهار"]
[17,"عميل17",null,null,null,null,null,111,null,null,null,111,"",null,null,"اظهار"]
[18,"عميل18",null,null,null,null,null,null,null,null,null,0,"",null,null,""]
[19,"عميل19",null,null,null,null,null,null,null,null,null,0,"",null,null,""]
[20,"عميل20",null,null,null,null,null,null,null,null,null,0,"",null,null,""]
[21,"عميل21",null,null,null,null,null,null,null,null,null,0,"",null,null,""]
[22,"عميل22",null,null,null,null,null,null,null,null,null,0,"",null,null,""]
["الإجمالي النقدي",null,null,null,{"$f":"SUM(E31:E52)","v":195},{"$f":"SUM(F31:F52)","v":109},{"$f":"SUM(G31:G52)","v":138},{"$f":"SUM(H31:H52)","v":443},{"$f":"SUM(I31:I52)","v":33},{"$f":"SUM(J31:J52)","v":400},{"$f":"SUM(K31:K52)","v":500},{"$f":"SUM(L31:L52)","v":1818},"",null,null,"اظهار"]
["الشيكات",null,null,null,null,null,null,500,null,null,null,{"$f":"SUM(E54:K54)","v":500},"",null,null,"اظهار"]
[null,null,null,null,null,null,null,null,null,null,null,null,null,null,null,""]
["اليوم الثالث",null,null,null,null,"السبت",3,"محرم",1437,null,null,null,{"$f":"IF($S$1=3,\"3\",\"\")","v":""},null,null,""]
["م","اسم العميل","الفرع","العنوان","مبلغ1","مبلغ2","مبلغ3","مبلغ4","مبلغ5","مبلغ6","مبلغ7","اجمالي المبالغ","",null,null,"اظهار"]
[1,"عميل1",null,null,15,null,null,null,null,null,null,{"$f":"SUM(E58:K58)","v":15},"",null,null,"اظهار"]
[2,"عميل 2",null,null,null,null,null,null,null,null,null,{"$f":"SUM(E59:K59)","v":0},"",null,null,""]
[3,"عميل3",null,null,20,null,null,60,null,null,null,80,"",null,null,"اظهار"]
[4,"عميل4",null,null,null,null,null,null,null,null,null,0,"",null,null,""]
[5,"عميل5",null,null,30,null,null,null,33,null,500,563,"",null,null,"اظهار"]
[6,"عميل6",null,null,null,null,null,null,null,null,null,0,"",null,null,""]
[7,"عميل7",null,null,40,10,50,null,null,null,null,100,"",null,null,"اظهار"]
[8,"عميل8",null,null,null,null,null,null,null,400,null,400,"",null,null,"اظهار"]
[9,"عميل9",null,null,null,null,null,null,null,null,null,0,"",null,null,""]
[10,"عميل10",null,null,null,99,null,null,null,null,null,99,"",null,null,"اظهار"]
[11,"عميل11",null,null,null,null,88,77,null,null,null,165,"",null,null,{"$f":"IF(L68>0,\"اظهار\",IF(L68<=0,\"\"))","v":"اظهار"}]
[12,"عميل12",null,null,null,null,null,null,null,null,null,0,"",null,null,""]
[13,"عميل13",null,null,null,null,null,70,null,null,null,70,"",null,null,"اظهار"]
[14,"عميل14",null,null,null,null,null,null,null,null,null,0,"",null,null,""]
[15,"عميل15",null,null,null,null,null,null,null,null,null,0,"",null,null,""]
[16,"عميل16",null,null,90,null,null,125,null,null,null,215,"",null,null,"اظهار"]
[17,"عميل17",null,null,null,null,null,111,null,null,null,111,"",null,null,"اظهار"]
[18,"عميل18",null,null,null,null,null,null,null,null,null,0,"",null,null,""]
[19,"عميل19",null,null,null,null,null,null,null,null,null,0,"",null,null,""]
[20,"عميل20",null,null,null,null,null,null,null,null,null,0,"",null,null,""]
[21,"عميل21",null,null,null,null,null,null,null,null,null,0,"",null,null,""]
[22,"عميل22",null,null,null,null,null,null,null,null,null,0,"",null,null,""]
["الإجمالي النقدي",null,null,null,{"$f":"SUM(E58:E79)","v":195},{"$f":"SUM(F58:F79)","v":109},{"$f":"SUM(G58:G79)","v":138},{"$f":"SUM(H58:H79)","v":443},{"$f":"SUM(I58:I79)","v":33},{"$f":"SUM(J58:J79)","v":400},{"$f":"SUM(K58:K79)","v":500},{"$f":"SUM(L58:L79)","v":1818},"",null,null,"اظهار"]
["الشيكات",null,null,null,null,null,null,100,null,null,null,{"$f":"SUM(E81:K81)","v":100},"",null,null,"اظهار"]
[null,null,null,null,null,null,null,null,null,null,null,null,null,null,null,""]
["اليوم الرابع",null,null,null,null,"السبت",4,"محرم",1437,null,null,null,{"$f":"IF($S$1=4,\"4\",\"\")","v":""},null,null,""]
["م","اسم العميل","الفرع","العنوان","مبلغ1","مبلغ2","مبلغ3","مبلغ4","مبلغ5","مبلغ6","مبلغ7","اجمالي المبالغ","",null,null,"اظهار"]
[1,"عميل1",null,null,15,null,null,null,null,null,null,{"$f":"SUM(E85:K85)","v":15},"",null,null,"اظهار"]
[2,"عميل 2",null,null,null,null,null,null,null,null,null,{"$f":"SUM(E86:K86)","v":0},"",null,null,""]
[3,"عميل3",null,null,20,null,null,60,null,null,null,80,"",null,null,"اظهار"]
[4,"عميل4",null,null,null,null,null,null,null,null,null,0,"",null,null,""]
[5,"عميل5",null,null,30,null,null,null,33,null,500,563,"",null,null,"اظهار"]
[6,"عميل6",null,null,null,null,null,null,null,null,null,0,"",null,null,""]
[7,"عميل7",null,null,40,10,50,null,null,null,null,100,"",null,null,"اظهار"]
[8,"عميل8",null,null,null,null,null,null,null,400,null,400,"",null,null,"اظهار"]
[9,"عميل9",null,null,null,null,null,null,null,null,null,0,"",null,null,""]
[10,"عميل10",null,null,null,99,null,null,null,null,null,99,"",null,null,"اظهار"]
[11,"عميل11",null,null,null,null,88,77,null,null,null,165,"",null,null,"اظهار"]
[12,"عميل12",null,null,null,null,null,null,null,null,null,0,"",null,null,""]
[13,"عميل13",null,null,null,null,null,70,null,null,null,70,"",null,null,"اظهار"]
[14,"عميل14",null,null,null,null,null,null,null,null,null,0,"",null,null,""]
[15,"عميل15",null,null,null,null,null,null,null,null,null,0,"",null,null,""]
[16,"عميل16",null,null,90,null,null,125,null,null,null,215,"",null,null,"اظهار"]
[17,"عميل17",null,null,null,null,null,111,null,null,null,111,"",null,null,"اظهار"]
[18,"عميل18",null,null,null,null,null,null,null,null,null,0,"",null,null,""]
[19,"عميل19",null,null,null,null,null,null,null,null,null,0,"",null,null,""]
[20,"عميل20",null,null,null,null,null,null,null,null,null,0,"",null,null,""]
[21,"عميل21",null,null,null,null,null,null,null,null,null,0,"",null,null,""]
[22,"عميل22",null,null,null,null,null,null,null,null,null,0,"",null,null,""]
["الإجمالي النقدي",null,null,null,{"$f":"SUM(E85:E106)","v":195},{"$f":"SUM(F85:F106)","v":109},{"$f":"SUM(G85:G106)","v":138},{"$f":"SUM(H85:H106)","v":443},{"$f":"SUM(I85:I106)","v":33},{"$f":"SUM(J85:J106)","v":400},{"$f":"SUM(K85:K106)","v":500},{"$f":"SUM(L85:L106)","v":1818},"",null,null,"اظهار"]
["الشيكات",null,null,null,null,null,700,0,null,null,null,{"$f":"SUM(E108:K108)","v":700},"",null,null,"اظهار"]
[null,null,null,null,null,null,null,null,null,null,null,null,null,null,null,""]
["اليوم الخامس",null,null,null,null,"السبت",5,"محرم",1437,null,null,null,{"$f":"IF($S$1=5,\"5\",\"\")","v":""},null,null,""]
["م","اسم العميل","الفرع","العنوان","مبلغ1","مبلغ2","مبلغ3","مبلغ4","مبلغ5","مبلغ6","مبلغ7","اجمالي المبالغ","",null,null,"اظهار"]
[1,"عميل1",null,null,15,null,null,null,null,null,null,{"$f":"SUM(E112:K112)","v":15},"",null,null,"اظهار"]
[2,"عميل 2",null,null,null,null,null,null,null,null,null,{"$f":"SUM(E113:K113)","v":0},"",null,null,""]
[3,"عميل3",null,null,20,null,null,60,null,null,null,80,"",null,null,"اظهار"]
[4,"عميل4",null,null,null,null,null,null,null,null,null,0,"",null,null,""]
[5,"عميل5",null,null,30,null,null,null,33,null,500,563,"",null,null,"اظهار"]
[6,"عميل6",null,null,null,null,null,null,null,null,null,0,"",null,null,""]
[7,"عميل7",null,null,40,10,50,null,null,null,null,100,"",null,null,"اظهار"]
[8,"عميل8",null,null,null,null,null,null,null,400,null,400,"",null,null,"اظهار"]
[9,"عميل9",null,null,null,null,null,null,null,null,null,0,"",null,null,""]
[10,"عميل10",null,null,null,99,null,null,null,null,null,99,"",null,null,"اظهار"]
[11,"عميل11",null,null,null,null,88,77,null,null,null,165,"",null,null,"اظهار"]
[12,"عميل12",null,null,null,null,null,null,null,null,null,0,"",null,null,""]
[13,"عميل13",null,null,null,null,null,70,null,null,null,70,"",null,null,"اظهار"]
[14,"عميل14",null,null,null,null,null,null,null,null,null,0,"",null,null,""]
[15,"عميل15",null,null,null,null,null,null,null,null,null,0,"",null,null,""]
[16,"عميل16",null,null,90,null,null,125,null,null,null,215,"",null,null,"اظهار"]
[17,"عميل17",null,null,null,null,null,111,null,null,null,111,"",null,null,"اظهار"]
[18,"عميل18",null,null,null,null,null,null,null,null,null,0,"",null,null,""]
[19,"عميل19",null,null,null,null,null,null,null,null,null,0,"",null,null,""]
[20,"عميل20",null,null,null,null,null,null,null,null,null,0,"",null,null,""]
[21,"عميل21",null,null,null,null,null,null,null,null,null,0,"",null,null,{"$f":"IF(L132>0,\"اظهار\",IF(L132<=0,\"\"))","v":""}]
[22,"عميل22",null,null,null,null,null,null,null,null,null,0,"",null,null,""]
["الإجمالي النقدي",null,null,null,{"$f":"SUM(E112:E133)","v":195},{"$f":"SUM(F112:F133)","v":109},{"$f":"SUM(G112:G133)","v":138},{"$f":"SUM(H112:H133)","v":443},{"$f":"SUM(I112:I133)","v":33},{"$f":"SUM(J112:J133)","v":400},{"$f":"SUM(K112:K133)","v":500},{"$f":"SUM(L112:L133)","v":1818},"",null,null,"اظهار"]
["الشيكات",null,null,null,900,null,null,0,null,null,null,{"$f":"SUM(E135:K135)","v":900},"",null,null,"اظهار"]
[null,null,null,null,null,null,null,null,null,null,null,null,"",null,null,""]
[null,null,null,null,null,null,null,null,null,null,null,null,"",null,null,""]
[null,null,null,null,null,null,null,null,null,null,null,null,null,null,null,""]
[null,null,null,null,null,null,null,null,null,null,null,null,null,null,null,""]
[null,null,null,null,null,null,null,null,null,null,null,null,null,null,null,""]
[null,null,null,null,null,null,null,null,null,null,null,null,null,null,null,""]
[null,null,null,null,null,null,null,null,null,null,null,null,null,null,null,""]
[null,null,null,null,null,null,null,null,null,null,null,null,null,null,null,""]
[null,null,null,null,null,null,null,null,null,null,null,null,null,null,null,""]
[null,null,null,null,null,null,null,null,null,null,null,null,null,null,null,""]
[null,null,null,null,null,null,null,null,null,null,null,null,null,null,null,""]
[null,null,null,null,null,null,null,null,null,null,null,null,null,null,null,""]
[null,null,null,null,null,null,null,null,null,null,null,null,null,null,null,""]
[null,null,null,null,null,null,null,null,null,null,null,null,null,null,null,""]
[null,null,null,null,null,null,null,null,null,null,null,null,null,null,null,""]
[null,null,null,null,null,null,null,null,null,null,null,null,null,null,null,""]
[null,null,null,null,null,null,null,null,null,null,null,null,null,null,null,""]
[null,null,null,null,null,null,null,null,null,null,null,null,null,null,null,""]
[null,null,null,null,null,null,null,null,null,null,null,null,null,null,null,""]
[null,null,null,null,null,null,null,null,null,null,null,null,null,null,null,""]
[null,null,null,null,null,null,null,null,null,null,null,null,null,null,null,""]
[null,null,null,null,null,null,null,null,null,null,null,null,null,null,null,""]
[null,null,null,null,null,null,null,null,null,null,null,null,null,null,null,""]
[null,null,null,null,null,null,null,null,null,null,null,null,null,null,null,""]
[null,null,null,null,null,null,null,null,null,null,null,null,null,null,null,""]
[null,null,null,null,null,null,null,null,null,null,null,null,null,null,null,""]
[null,null,null,null,null,null,null,null,null,null,null,null,null,null,null,""]
[null,null,null,null,null,null,null,null,null,null,null,null,null,null,null,""]
[null,null,null,null,null,null,null,null,null,null,null,null,null,null,null,""]
[null,null,null,null,null,null,null,null,null,null,null,null,null,null,null,""]
[null,null,null,null,null,null,null,null,null,null,null,null,null,null,null,""]
[null,null,null,null,null,null,null,null,null,null,null,null,null,null,null,""]
[null,null,null,null,null,null,null,null,null,null,null,null,null,null,null,""]
[null,null,null,null,null,null,null,null,null,null,null,null,null,null,null,""]
[null,null,null,null,null,null,null,null,null,null,null,null,null,null,null,""]
[null,null,null,null,null,null,null,null,null,null,null,null,null,null,null,""]
[null,null,null,null,null,null,null,null,null,null,null,null,null,null,null,""]
[null,null,null,null,null,null,null,null,null,null,null,null,null,null,null,""]
[null,null,null,null,null,null,null,null,null,null,null,null,null,null,null,""]
[null,null,null,null,null,null,null,null,null,null,null,null,null,null,null,""]
[null,null,null,null,null,null,null,null,null,null,null,null,null,null,null,""]
[null,null,null,null,null,null,null,null,null,null,null,null,null,null,null,""]
[null,null,null,null,null,null,null,null,null,null,null,null,null,null,null,""]
[null,null,null,null,null,null,null,null,null,null,null,null,null,null,null,""]
[null,null,null,null,null,null,null,null,null,null,null,null,null,null,null,""]
[null,null,null,null,null,null,null,null,null,null,null,null,null,null,null,""]
[null,null,null,null,null,null,null,null,null,null,null,null,null,null,null,""]
[null,null,null,null,null,null,null,null,null,null,null,null,null,null,null,""]
[null,null,null,null,null,null,null,null,null,null,null,null,null,null,null,""]
[null,null,null,null,null,null,null,null,null,null,null,null,null,null,null,""]
[null,null,null,null,null,null,null,null,null,null,null,null,null,null,null,""]
[null,null,null,null,null,null,null,null,null,null,null,null,null,null,null,""]
[null,null,null,null,null,null,null,null,null,null,null,null,null,null,null,""]
[null,null,null,null,null,null,null,null,null,null,null,null,null,null,null,""]
[null,null,null,null,null,null,null,null,null,null,null,null,null,null,null,""]
[null,null,null,null,null,null,null,null,null,null,null,null,null,null,null,""]
[null,null,null,null,null,null,null,null,null,null,null,null,null,null,null,""]
[null,null,null,null,null,null,null,null,null,null,null,null,null,null,null,""]
[null,null,null,null,null,null,null,null,null,null,null,null,null,null,null,""]
[null,null,null,null,null,null,null,null,null,null,null,null,null,null,null,""]
[null,null,null,null,null,null,null,null,null,null,null,null,null,null,null,{"$f":"IF(L196>0,\"اظهار\",IF(L196<=0,\"\"))","v":""}]
[null,null,null,null,null,null,null,null,null,null,null,null,null,null,null,""]
[null,null,null,null,null,null,null,null,null,null,null,null,null,null,null,""]
[null,null,null,null,null,null,null,null,null,null,null,null,null,null,null,""]